fUSD/lending_fUSD_20240521
["ID","MTS","AMOUNT","RATE_DAILY","PERIOD"]
[327628769,1716257440389,-154.1024266,0.00023938,2]
[327628770,1716257440399,-432.96747443,0.00024,2]
[327628771,1716257440409,-153.99884084,0.00024018,2]
[327628772,1716257440419,-339.9422104,0.0002413,2]
[327628773,1716257440428,-155.54294865,0.0002423,2]
[327628774,1716257440438,-180.0,0.0002423,2]
[327628775,1716257440448,-348.62460844,0.00024375,2]
[327628776,1716257440457,-200.0,0.00024455,2]
[327628777,1716257440467,-1483.71262152,0.000245,3]
[327628778,1716257440479,-155.21181567,0.0002455,2]
[327628779,1716257440488,-863.54067408,0.0002455,2]
[327628780,1716257440498,-1777.06520108,0.0002455,2]
[327628781,1716257440507,-628.99368354,0.0002455,2]
[327628782,1716257440516,-4912.03756279,0.0002455,2]
[327628783,1716257440526,-2970.77451867,0.0002455,2]
[327628784,1716257440536,-23514.99200341,0.0002455,5]
[327628785,1716257440545,-1266.62360487,0.0002455,2]
[327628786,1716257440554,-155.09501321,0.0002455,2]
[327628787,1716257440564,-790.49782473,0.0002455,2]
[327628788,1716257440573,-155.14262758,0.00024551,4]
[327628789,1716257440583,-155.23937799,0.00024551,2]
[327628790,1716257440592,-155.24269781,0.00024551,2]
[327628791,1716257440602,-547.93573608,0.00024551,2]
[327628792,1716257440611,-2751.0,0.00024552,2]
[327628793,1716257440621,-152.20246737,0.00024626,2]
[327628794,1716257440630,-250.0,0.00024658,2]
[327628795,1716257440639,-151.0104416,0.00024694,2]
[327628796,1716257440649,-522.0,0.000247,2]
[327628797,1716257440659,-2815.89067341,0.00024725,2]
[327628798,1716257440670,-189.83971453,0.00024777,2]
[327628799,1716257440680,-166.66666668,0.00024783,2]
[327628800,1716257440691,-9972.98,0.00024792,2]
[327628801,1716257440700,-166.66666666,0.00024835,2]
[327628802,1716257440710,-2789.7194368,0.00024889,2]
[327628803,1716257440721,-2789.7194368,0.00024889,2]
[327628804,1716257440732,-2789.7194368,0.00024889,2]
[327628805,1716257440742,-2789.7194368,0.00024889,2]
[327628806,1716257440753,-2168.79897178,0.000249,2]
[327628807,1716257441066,-151.0104416,0.00024906,2]
[327628808,1716257441096,-164.51586569,0.00024926,2]
[327628809,1716257441107,-153.72660856,0.00024941,2]
[327628810,1716257441117,-348.62460844,0.00024986,2]
[327628811,1716257441126,-9153.06960277,0.0002499,2]
[327628812,1716257441136,-470.72818446,0.00025,7]
[327628813,1716257441146,-926.59377141,0.00025,2]
[327628814,1716257441156,-11031.672454,0.00025,5]
[327628815,1716257441165,-1271.70007805,0.00025,2]
[327628816,1716257441175,-155.0,0.00025,2]
[327628817,1716257441184,-309171.35356815,0.00025,2]
[327628818,1716257441198,-72232.05546297,0.00025,2]
[327628819,1716257441210,-627.57621706,0.00025,2]
[327628820,1716257441221,-311.75649,0.00025,2]
[327628821,1716257441329,-1086.93189934,0.00025,2]
[327628822,1716257441795,-326.12204379,0.00025,2]
[327628823,1716257441807,-260.21525013,0.00025,2]
[327628824,1716257441818,-4743.89536184,0.00025,2]
[327628825,1716257442285,-1121.2213578,0.00025,2]
[327628826,1716257442296,-3228.00211636,0.00025,2]
[327628827,1716257442308,-914.35207405,0.00025,2]
[327628828,1716257442359,-6733.02504383,0.00025,2]
[327628829,1716257442370,-257.59616578,0.00025,2]
[327628830,1716257442700,-8136.80152,0.00025,2]
[327628831,1716257442712,-1517.4077111,0.00025,2]
[327628893,1716257444175,-1287.0887427,0.00025,2]
[327628907,1716257444796,-10701.72628,0.00025,2]
[327628913,1716257444854,-100.3036198,0.00025,2]
[327628915,1716257444865,-2135.45502402,0.00025,2]
[327628918,1716257444881,-503.99410468,0.00025,2]
[327628920,1716257444893,-344.10978337,0.00025,2]
[327628922,1716257444904,-5653.0125096,0.00025,2]
[327628924,1716257444916,-925.50594997,0.00025,2]
[327628927,1716257444930,-427.149998,0.00025,2]
[327628929,1716257444941,-1502.81579274,0.00025,2]
[327629046,1716257446201,-2437.47706605,0.00025,2]
[327629051,1716257446215,-2287.15044994,0.00025,2]
[327629053,1716257446227,-43317.2415154,0.00025,2]
[327629074,1716257446390,-2e-08,0.00025,2]
[327629122,1716257446828,-365.22407681,0.00025,2]
[327629124,1716257446840,-267.89057649,0.00025,2]
[327629126,1716257446851,-2013.8095615,0.00025,2]
[327629128,1716257446862,-1195.8141909,0.00025,2]
[327629130,1716257446874,-2089.86470127,0.00025,2]
[327629133,1716257446888,-581.0,0.00025,2]
[327629135,1716257446900,-6293.32144232,0.00025,2]
[327629137,1716257446912,-16685.43148022,0.00025,2]
[327629139,1716257446926,-10626.67261,0.00025,2]
[327629142,1716257446938,-15244.77312,0.00025,2]
[327629144,1716257446951,-5055.84604118,0.00025,2]
[327629146,1716257446970,-278.97054483,0.00025,2]
[327629831,1716257906406,159.63,0.00013973,2]
[327629846,1716258444234,-155.0,0.0001715,2]
[327629847,1716258444257,-1227.04758271,0.0001715,2]
[327629848,1716258444282,-39226.01805049,0.00017151,2]
[327629849,1716258444304,-2452.49640799,0.00017154,2]
[327629850,1716258444331,-300.0,0.00017155,2]
[327629851,1716258444352,-156.85515316,0.00017258,2]
[327629852,1716258444374,-155.61651065,0.00017258,2]
[327629853,1716258444397,-181.06530353,0.0002,2]
[327629854,1716258444419,-842.06,0.0002,2]
[327629855,1716258444440,-177.04029578,0.0002,2]
[327629856,1716258444462,-5185.19650813,0.0002,2]
[327629857,1716258444486,-499.99,0.0002,2]
[327629858,1716258444508,-158.86,0.00020313,2]
[327629859,1716258444531,-718.86577372,0.00021,2]
[327629860,1716258444552,-1750.0,0.00021,2]
[327629861,1716258444575,-1248.001851,0.00021,2]
[327629862,1716258444595,-161.00066919,0.00021049,2]
[327629863,1716258444616,-166.66666666,0.00021186,2]
[327629864,1716258444638,-267.27886647,0.0002119,2]
[327629865,1716258444658,-267.27886647,0.00021222,2]
[327629866,1716258444678,-151.0104416,0.00021291,2]
[327629867,1716258444698,-161.00066919,0.00021339,2]
[327629868,1716258444719,-155.54294866,0.00021365,2]
[327629869,1716258444740,-154.68421184,0.00021666,2]
[327629870,1716258444762,-151.0104416,0.00021703,2]
[327629871,1716258444782,-151.0104416,0.00021874,2]
[327629872,1716258444802,-6770.06099695,0.000219,2]
[327629873,1716258444822,-523.43627609,0.000219,2]
[327629874,1716258444842,-190.85,0.00021918,2]
[327629875,1716258444864,-250.0,0.00022124,2]
[327629876,1716258444885,-10000.0,0.00022158,2]
[327629877,1716258444909,-168.43,0.00022161,2]
[327629878,1716258444931,-2945.3,0.00022167,2]
[327629879,1716258444952,-200.0,0.00022175,2]
[327629880,1716258444975,-155.32,0.00022178,2]
[327629881,1716258444996,-1000.0,0.00022183,2]
[327629882,1716258445017,-1335.87436537,0.00022187,2]
[327629883,1716258449146,-152.20246738,0.00021462,2]
[327629884,1716258449172,-153.99884084,0.00021483,2]
[327629885,1716258449196,-151.0104416,0.00021742,2]
[327629886,1716258449216,-152.89707066,0.0002203,2]
[327629887,1716258449240,-102.94917281,0.00022173,2]
[327629888,1716258477149,155.36,0.00013973,2]
[327629892,1716258547090,-2159.75050637,0.0001663,2]
[327629893,1716258548354,-314.74261016,0.0001663,2]
[327629894,1716258548374,-231.7557,0.00017053,2]
[327629895,1716258548394,-153.72660855,0.00021283,2]
[327629896,1716258548413,-152.19020747,0.00021328,2]
[327629897,1716258548435,-155.72361371,0.00022023,2]
[327629898,1716258548456,-397.05082719,0.00022173,2]
[327629899,1716258548477,-2277.5401407,0.00022173,2]
[327629900,1716258548496,-3524.19449222,0.00022173,2]
[327629901,1716258548522,-48468.77532,0.00022173,2]
[327629902,1716258555142,-2180.76925549,0.00022173,2]
[327629903,1716258556198,-30517.68849479,0.00022173,2]
[327629908,1716258561491,-64367.88355352,0.00022173,2]
[327629909,1716258563176,-6605.1058972,0.00022173,2]
[327629910,1716258566138,-5185.19650813,0.00022172,2]
[327629911,1716258566160,-6041.75261733,0.00022173,2]
[327629912,1716258574144,-3697.2853758,0.00022173,2]
[327629920,1716258634951,-1000.0,0.00022171,2]
[327629921,1716258634961,-2877.96746998,0.00022172,2]
[327629922,1716258634971,-2586.85996623,0.00022173,2]
[327629923,1716258634984,-259.02589697,0.00022173,2]
[327629924,1716258634996,-1272.24,0.00022173,2]
[327629925,1716258635008,-1556.38050432,0.00022173,2]
[327629926,1716258635020,-1737.63189954,0.00022173,2]
[327629927,1716258635032,-1228.76,0.00022196,2]
[327629928,1716258635042,-151.09,0.00022209,2]
[327629929,1716258635053,-163.52,0.0002235,2]
[327629930,1716258635063,-167.94860193,0.00022483,2]
[327629931,1716258635073,-158.86,0.00022577,2]
[327629932,1716258635083,-167.123739,0.0002274,2]
[327629933,1716258635093,-2000.0,0.00022908,2]
[327629934,1716258635117,-267.27886647,0.00022913,2]
[327629935,1716258635127,-267.27886647,0.00022929,2]
[327629936,1716258635138,-1963.2,0.00022982,2]
[327629937,1716258635149,-476.19940568,0.00022998,2]
[327629938,1716258635160,-155.0,0.00022999,2]
[327629939,1716258635171,-6233.43982521,0.00022999,2]
[327629940,1716258635182,-411.81732087,0.00023,2]
[327629941,1716258635197,-431.18512968,0.00023,2]
[327629946,1716258635322,-956.99754945,0.00023,2]
[327629947,1716258635332,-1092.43015426,0.00023,2]
[327629963,1716258638849,-1506.12972601,0.00023,2]
[327629964,1716258638862,-2401.44011973,0.00023,2]
[327629965,1716258638872,-1407.26717626,0.00023,5]
[327629966,1716258638884,-592.73282374,0.00023,5]
[327629967,1716258638894,-200.0,0.00023028,2]
[327629968,1716258638904,-152.20246738,0.00023086,2]
[327629969,1716258638914,-591.0,0.000231,5]
[327629970,1716258638924,-267.27886647,0.00023109,2]
[327629971,1716258638934,-152.89707066,0.00023259,2]
[327629972,1716258638944,-153.72660857,0.00023316,2]
[327629973,1716258638954,-150.33,0.00023491,2]
[327629974,1716258638965,-152.19020747,0.00023505,2]
[327629975,1716258638974,-167.123739,0.00023562,2]
[327629976,1716258638984,-152.19020747,0.00023573,2]
[327629977,1716258638995,-170.85,0.00023589,2]
[327629978,1716258639005,-154.68421184,0.00023653,2]
[327629979,1716258639015,-159.15401722,0.00023666,2]
[327629980,1716258639025,-170.3,0.00023693,2]
[327629981,1716258639036,-2006.79478825,0.00023748,2]
[327629982,1716258639046,-152.19020747,0.00023909,2]
[327629983,1716258639057,-154.68421184,0.00023915,2]
[327629984,1716258639067,-432.96747443,0.00024,2]
[327629985,1716258639076,-154.68421184,0.00024182,2]
[327629986,1716258639085,-158.32013297,0.00024237,2]
[327629987,1716258639096,-165.19,0.00024256,2]
[327629988,1716258639106,-165.19,0.00024273,2]
[327629989,1716258639116,-165.19,0.00024291,2]
[327629990,1716258639125,-147.67091338,0.00024308,2]
[327629991,1716258639138,-17.51908662,0.00024308,2]
[327629992,1716258639148,-155.72361371,0.00024323,2]
[327629993,1716258639157,-165.19,0.00024325,2]
[327629994,1716258639167,-165.19,0.00024343,2]
[327629995,1716258639177,-166.83499667,0.00024354,2]
[327629996,1716258639188,-165.19,0.0002436,2]
[327629997,1716258639198,-78.04489339,0.00024377,2]
[327629998,1716258639211,-87.14510661,0.00024377,2]
[327629999,1716258639220,-167.123739,0.00024384,2]
[327630000,1716258639231,-180.0,0.00024404,2]
[327630001,1716258639241,-154.68421184,0.00024483,2]
[327630002,1716258639253,-761.04694255,0.000245,3]
[327630003,1716258639266,-600.0,0.000245,3]
[327630021,1716258639624,-116.78349584,0.000245,3]
[327630022,1716258639635,-250.0,0.00024658,2]
[327630023,1716258639646,-151.0104416,0.00024691,2]
[327630024,1716258639656,-267.27886647,0.0002474,2]
[327630025,1716258639667,-3000.0,0.0002475,2]
[327630026,1716258639678,-154.68421184,0.00024753,2]
[327630027,1716258639688,-1565.66581161,0.00024814,2]
[327630028,1716258639697,-158.86,0.00024841,2]
[327630029,1716258639708,-150.33,0.00024861,2]
[327630030,1716258639718,-1514.22256322,0.000249,2]
[327630031,1716258639731,-159.60909886,0.000249,2]
[327630032,1716258639742,-322.49258104,0.000249,2]
[327630033,1716258639752,-1000.0,0.00024955,2]
[327630034,1716258639762,-9153.06960277,0.0002499,2]
[327630035,1716258639772,-190.51904323,0.00024997,2]
[327630036,1716258639781,-1405.98667584,0.00024997,2]
[327630037,1716258639793,-10831.79500732,0.00024997,2]
[327630038,1716258639806,-2799.3000199,0.00024997,2]
[327630039,1716258639819,-489.7517793,0.00024997,2]
[327630040,1716258639831,-4088.82025689,0.00024997,2]
[327630041,1716258639842,-1581.23208112,0.00025,2]
[327630042,1716258639855,-339.5,0.00025,2]
[327630043,1716258639868,-1910.62071326,0.00025,2]
[327630044,1716258639959,-3094.32703647,0.00025,2]
[327630045,1716258639972,-911.48925428,0.00025,2]
[327630046,1716258639985,-2500.0,0.00025,2]
[327630050,1716258642478,-78.75671224,0.00025,2]
[327630051,1716258643355,-125668.94613157,0.00025,2]
[327630070,1716258643859,-9175.93675851,0.00025,2]
[327630093,1716258646965,-1962.99053343,0.00025,2]
[327630094,1716258647243,-1373.84592932,0.00025,2]
[327630097,1716258647257,-7369.53865698,0.00025,2]
[327630098,1716258647269,-5715.101,0.00025,2]
[327630099,1716258650596,194.77,0.00026905,120]
[327630102,1716258824708,1151282.28187491,0.00013,2]
[327630103,1716258847301,710.97145904,0.000118,2]
[327630104,1716258956915,205.0,9.8e-05,2]
[327630105,1716258998112,1235.34075368,0.0001,2]
[327630108,1716259120838,184.97,0.00026792,120]
[327630112,1716259475590,217.15,0.00013973,2]
[327630113,1716259559676,-203.59974193,0.00016894,2]
[327630114,1716259559709,-717.33492966,0.00016992,2]
[327630115,1716259581900,387.0,0.000276,30]
[327630116,1716259636350,-10939.94571933,0.0001699,2]
[327630117,1716259636372,-140.80703861,0.00016991,2]
[327630118,1716259650098,-1860.36607735,0.00016991,2]
[327630119,1716259650120,-150.0,0.00016994,2]
[327630120,1716259650140,-2550.34464614,0.00016999,2]
[327630121,1716259650162,-4478.87013842,0.00017,2]
[327630122,1716259688040,151.09,0.00026928,120]
[327630125,1716259753100,-150.0,0.00016997,2]
[327630126,1716259753121,-10978.73986809,0.00016998,2]
[327630127,1716259753142,-7221.00627998,0.00017,2]
[327630128,1716259753163,-3642.3328,0.00017036,2]
[327630129,1716259753184,-6939.26722761,0.00017126,2]
[327630130,1716259753208,-440.26034068,0.00017248,2]
[327630131,1716259753229,-1298.18587077,0.00017254,2]
[327630132,1716259753252,-422.01,0.00017527,2]
[327630133,1716259753273,-2015.59965561,0.00017533,2]
[327630134,1716259753294,-8330.48,0.00017534,2]
[327630135,1716259753316,-1115.85,0.00017728,2]
[327630136,1716259753337,-943.47,0.00017728,2]
[327630137,1716259753359,-2887.58,0.00017728,2]
[327630138,1716259753381,-1797.09895726,0.00017728,2]
[327630139,1716259758113,-477.25104274,0.00017728,2]
[327630140,1716259758136,-349.44,0.00017808,2]
[327630141,1716259758158,-947.14,0.00017808,2]
[327630142,1716259758183,-200.0,0.00017859,2]
[327630143,1716259758209,-1803.66,0.0001791,2]
[327630144,1716259758234,-3877.32,0.00017926,2]
[327630145,1716259758260,-151.09,0.00017952,2]
[327630146,1716259758284,-470.3985444,0.00018003,2]
[327630147,1716259762104,-400.9,0.00016571,2]
[327630148,1716259762159,-167.6114556,0.00018003,2]
[327630149,1716259762181,-146.85157685,0.00018141,2]
[327630151,1716259769475,-353.14842315,0.00018141,2]
[327630152,1716259769498,-23900.0,0.00018157,2]
[327630153,1716259769520,-250.0,0.00018238,2]
[327630154,1716259769541,-250.0,0.00018422,2]
[327630155,1716259769562,-150.0,0.00018723,2]
[327630156,1716259769582,-168.43,0.00018832,2]
[327630157,1716259769604,-400.9,0.00018835,2]
[327630158,1716259769629,-160.39,0.00019026,2]
[327630159,1716259769650,-160.39,0.00019356,2]
[327630160,1716259769682,-184.97,0.00019485,2]
[327630161,1716259769706,-160.39,0.00019687,2]
[327630162,1716259769728,-170.8,0.0001979,3]
[327630163,1716259769752,-14507.06857685,0.000198,2]
[327630166,1716259800746,2157.95,0.00016996,2]
[327630167,1716259800772,2159.75050637,0.00016996,2]
[327630168,1716259833135,-1423.68514835,0.00016996,2]
[327630170,1716259833147,-579.23040128,0.00016996,2]
[327630171,1716259833163,-8443.82740532,0.00016996,2]
[327630173,1716259833174,-1964.96116527,0.00016996,2]
[327630176,1716259833183,-609.49,0.00019065,2]
[327630179,1716259833192,-11699.8764184,0.0001956,2]
[327630181,1716259833201,-15859.67241133,0.000198,2]
[327630185,1716259833213,-685.05424735,0.000198,2]
[327630187,1716259833224,-484.32,0.000198,2]
[327630189,1716259833235,-1324.37121415,0.000198,2]
[327630191,1716259833247,-8447.94555244,0.000198,2]
[327630193,1716259833258,-1422.8,0.000198,2]
[327630194,1716259833269,-4720.96206971,0.000198,2]
[327630195,1716259833280,-517.9614323,0.000198,2]
[327630196,1716259833291,-803.1102161,0.000198,2]
[327630197,1716259833337,-4318.56012524,0.000198,2]
[327630198,1716259834033,-665.7164581,0.000198,2]
[327630200,1716259834045,-3913.38875614,0.000198,2]
[327630201,1716259839342,-2774.23906792,0.000198,2]
[327630222,1716259839544,-1422.6949102,0.000198,2]
[327630224,1716259839557,-729.82228752,0.000198,2]
[327630226,1716259839569,-857.23661901,0.000198,2]
[327630228,1716259839581,-28663.21010576,0.000198,2]
[327630232,1716259839627,-383.30097026,0.000198,2]
[327630234,1716259839639,-1000.08246036,0.000198,2]
[327630249,1716259840208,-2022.52795283,0.000198,2]
[327630252,1716259840219,-1325.81220542,0.000198,2]
[327630253,1716259840231,-23074.62556101,0.000198,2]
[327630255,1716259840242,-77690.48827057,0.000199,3]
[327630261,1716259842095,-1115.58827689,0.000199,3]
[327630262,1716259842109,-5487.99257599,0.000199,3]
[327630263,1716259842121,-406.24944498,0.000199,3]
[327630264,1716259843698,-87796.2461308,0.000199,3]
[327630265,1716259843708,-759.6,0.0002,4]
[327630266,1716259843718,-862.15509982,0.0002,2]
[327630267,1716259843728,-2401.82766078,0.00020179,2]
[327630268,1716259843740,-1000.0,0.00020335,2]
[327630269,1716259843750,-170.61,0.0002039,2]
[327630270,1716259843759,-160.39,0.00020403,2]
[327630271,1716259843770,-217.15,0.00020447,2]
[327630272,1716259843780,-3877.32,0.00020665,2]
[327630273,1716259843790,-1750.0,0.00021,2]
[327630274,1716259843800,-279.63555806,0.00021069,2]
[327630275,1716259843810,-400.9,0.00021099,2]
[327630276,1716259843820,-155.54294866,0.00021212,2]
[327630277,1716259843830,-182.00072046,0.00021439,2]
[327630278,1716259843840,-217784.14975859,0.00021498,2]
[327630279,1716259843850,-159.57499239,0.00021599,2]
[327630280,1716259843860,-279.63555806,0.00021622,2]
[327630281,1716259843870,-166.66666666,0.00021695,2]
[327630282,1716259843880,-157.6270965,0.00021737,2]
[327630283,1716259843890,-170.61,0.00021832,2]
[327630284,1716259843899,-500.0,0.000219,2]
[327630286,1716259843909,-157.63,0.00021918,2]
[327630288,1716259843919,-2000.0,0.00021918,2]
[327630290,1716259843929,-284.65,0.00021918,2]
[327630292,1716259843939,-184.97,0.00021921,2]
[327630294,1716259844350,-279.63555806,0.00021942,2]
[327630295,1716259844379,-157.6270965,0.00022011,2]
[327630296,1716259844389,-155.54294866,0.00022168,2]
[327630297,1716259844400,-588.61918746,0.00022173,2]
[327630298,1716259844410,-279.63555806,0.0002224,2]
[327630299,1716259844420,-168.84,0.00022395,2]
[327630300,1716259844430,-800.0,0.00022438,2]
[327630301,1716259844440,-157.6270965,0.00022603,2]
[327630302,1716259844450,-155.5094026,0.00022769,2]
[327630303,1716259844460,-1000.0,0.00022876,2]
[327630304,1716259844469,-154.10242661,0.00022919,2]
[327630305,1716259844479,-2000.0,0.00023,5]
[327630306,1716259844489,-5000.0,0.00023,2]
[327630307,1716259844499,-320.0,0.00023,10]
[327630308,1716259844510,-1800.0,0.00023,2]
[327630309,1716259844519,-153.59087666,0.00023087,2]
[327630310,1716259844529,-182.00072046,0.00023164,2]
[327630311,1716259844539,-159.57499239,0.00023202,2]
[327630312,1716259844549,-170.61,0.00023274,2]
[327630313,1716259844559,-182.98332296,0.00023283,2]
[327630314,1716259844568,-154.10242661,0.00023325,2]
[327630315,1716259844578,-400.9,0.00023363,2]
[327630316,1716259844587,-154.10242661,0.00023378,2]
[327630317,1716259844596,-3877.32,0.00023405,2]
[327630318,1716259844606,-152.89707066,0.00023539,2]
[327630319,1716259844616,-153.59087666,0.00023568,2]
[327630320,1716259844625,-159.57499239,0.00023592,2]
[327630321,1716259844635,-157.6270965,0.0002365,2]
[327630322,1716259844644,-155.5094026,0.0002376,2]
[327630323,1716259844654,-154.10242661,0.00023944,2]
[327630324,1716259844664,-6769.49926427,0.0002397,2]
[327630325,1716259844674,-288.68637055,0.0002397,2]
[327630326,1716259844688,-600.15394593,0.0002397,2]
[327630327,1716259844698,-627.77142105,0.0002397,2]
[327630328,1716259844711,-1490.49977626,0.00023971,2]
[327630329,1716259844721,-1497.19892945,0.00023983,28]
[327630330,1716259844731,-2000.0,0.00024,5]
[327630331,1716259844742,-1425.33971498,0.00024,3]
[327630332,1716259844751,-152.20246738,0.00024004,2]
[327630333,1716259844763,-160.1344233,0.00024066,2]
[327630334,1716259844773,-153.44161824,0.00024118,2]
[327630335,1716259844782,-180.0,0.0002423,2]
[327630336,1716259844792,-158.32013297,0.00024346,2]
[327630337,1716259844803,-184.97,0.00024356,2]
[327630339,1716259844812,-279.63555806,0.00024365,2]
[327630341,1716259844823,-159.57499239,0.00024366,2]
[327630344,1716259844833,-293.34245469,0.00024486,2]
[327630346,1716259844843,-1227.01099952,0.00024499,2]
[327630348,1716259844852,-1477.83043839,0.000245,3]
[327630349,1716259844863,-7000.0,0.000245,4]
[327630351,1716259844872,-1239.56695223,0.000245,2]
[327630352,1716259844885,-475.15829594,0.000245,2]
[327630353,1716259844897,-285.27475183,0.000245,2]
[327630354,1716259844907,-250.0,0.00024658,2]
[327630355,1716259844918,-354.87655744,0.00024668,2]
[327630356,1716259844927,-170.61,0.00024716,2]
[327630357,1716259844938,-155.96690999,0.00024748,2]
[327630358,1716259844948,-228.06770619,0.00024748,2]
[327630359,1716259844958,-659.69401485,0.00024748,2]
[327630360,1716259844968,-398.78729086,0.00024748,2]
[327630361,1716259844977,-144.29939668,0.00024748,2]
[327630362,1716259844990,-45.88007619,0.00024748,2]
[327630363,1716259845000,-241.93093857,0.00024748,2]
[327630364,1716259845010,-156.94347439,0.00024748,2]
[327630365,1716259845020,-178.44850756,0.00024749,2]
[327630366,1716259845030,-199.3598851,0.00024749,2]
[327630367,1716259845042,-16.36881076,0.00024749,2]
[327630368,1716259845052,-956.02614783,0.0002475,2]
[327630369,1716259845063,-2043.97385217,0.0002475,2]
[327630370,1716259845073,-1202.41154305,0.00024789,2]
[327630371,1716259845084,-363.25426856,0.00024789,2]
[327630372,1716259845094,-163.24962298,0.00024798,2]
[327630373,1716259845104,-155.6236,0.00024798,2]
[327630374,1716259845114,-150.0,0.000248,2]
[327630375,1716259845123,-1710.10313024,0.00024889,2]
[327630376,1716259845133,-1710.10313019,0.00024889,2]
[327630377,1716259845143,-1710.10313019,0.00024889,2]
[327630378,1716259845152,-155.0,0.00024897,2]
[327630379,1716259845162,-546.89106013,0.00024898,2]
[327630380,1716259845172,-38345.27896041,0.00024898,2]
[327630381,1716259845184,-659.94979241,0.00024898,2]
[327630382,1716259845196,-4896.92,0.00024898,2]
[327630383,1716259845212,-1269.99509139,0.00024898,2]
[327630384,1716259845233,-662.47809905,0.00024898,2]
[327630385,1716259845256,-252.43701998,0.00024898,2]
[327630386,1716259845267,-696.2,0.00024898,2]
[327630387,1716259845279,-922.8938064,0.00024898,2]
[327630388,1716259845290,-7058.3,0.00024898,2]
[327630389,1716259845571,-1104.6360013,0.00024898,2]
[327630390,1716259845585,-7272.93989732,0.00024898,2]
[327630391,1716259845628,-102.32607467,0.00024898,2]
[327630392,1716259845642,-22908.31069795,0.00024898,2]
[327630393,1716259845654,-539.13403626,0.00024898,2]
[327630394,1716259845807,-1883.65102,0.00024898,2]
[327630395,1716259845819,-456328.62949549,0.00024898,2]
[327630396,1716259845830,-712.00036999,0.00024898,2]
[327630397,1716259845840,-300.6430529,0.00024898,2]
[327630398,1716259845850,-362.19631853,0.00024898,10]
[327630399,1716259845860,-17666.69397134,0.00024898,2]
[327630400,1716259845870,-17666.69397128,0.00024898,2]
[327630401,1716259845880,-17666.69397128,0.00024898,2]
[327630402,1716259845890,-33831.26979574,0.00024899,2]
[327630403,1716259845899,-4503.35029702,0.000249,2]
[327630404,1716259845909,-179.21456996,0.000249,2]
[327630405,1716259845919,-159.57499239,0.00024945,2]
[327630406,1716259845930,-7702.45515972,0.0002499,2]
[327630407,1716259845940,-818.89844686,0.00024999,2]
[327630408,1716259845950,-515265.28324915,0.00025,2]
[327630409,1716259845960,-1271.70007805,0.00025,2]
[327630410,1716259845969,-155.32246475,0.00025,2]
[327630411,1716259845979,-926.59377141,0.00025,2]
[327630412,1716259845988,-3000.0,0.00025,2]
[327630413,1716259846000,-200.60203749,0.00025,7]
[327630414,1716259846011,-157.637051,0.00025,7]
[327630415,1716259846022,-1850.0,0.00025,2]
[327630416,1716259846032,-156.002864,0.00025,7]
[327630417,1716259846042,-152.697852,0.00025,7]
[327630418,1716259846051,-156.53476,0.00025,7]
[327630419,1716259846061,-151.0,0.00025,7]
[327630420,1716259846071,-154.792761,0.00025,7]
[327630421,1716259846082,-155.456231,0.00025,7]
[327630422,1716259846092,-154.289622,0.00025,7]
[327630423,1716259846102,-151.0,0.00025,7]
[327630424,1716259846112,-151.0,0.00025,7]
[327630425,1716259846122,-197.775357,0.00025,7]
[327630426,1716259846131,-151.0,0.00025,7]
[327630427,1716259846142,-173.186272,0.00025,7]
[327630428,1716259846151,-177.991223,0.00025,7]
[327630429,1716259846163,-151.0,0.00025,7]
[327630430,1716259846173,-151.0,0.00025,7]
[327630431,1716259846183,-173.360968,0.00025,7]
[327630432,1716259846192,-157.213242,0.00025,7]
[327630433,1716259846202,-151.0,0.00025,7]
[327630434,1716259846211,-151.0,0.00025,7]
[327630435,1716259846220,-151.0,0.00025,7]
[327630436,1716259846229,-471.3546,0.00025,7]
[327630437,1716259846238,-471.3546,0.00025,7]
[327630438,1716259846250,-6491.6813204,0.00025038,2]